Workbook

Sheet Sheet3
A1: 云岩区2024年公开招聘事业单位工作人员笔试、面试及总成绩
A2: 序号 | B2: 姓名 | C2: 准考证号 | D2: 报考单位 | E2: 岗位代码 | F2: 职测成绩 | G2: 综合成绩 | H2: 笔试卷面总成绩 | I2: 笔试折算成绩 （笔试百分制*0.6） | J2: 面试成绩 | K2: 面试折算成绩 （面试成绩*0.4） | L2: 总成绩
A3: 1 | B3: 冷桂玉 | C3: 1152014906421 | D3: 贵阳市云岩区融媒体中心 | E3: 20102000101 | F3: 95.5 | G3: 93.5 | H3: 189 | I3: =ROUND(H3/3*0.6,2) -> 37.8 | J3: 82.6 | K3: =ROUND(J3*0.4,2) -> 33.04 | L3: =I3+K3 -> 70.84
A4: 2 | B4: 张心玥 | C4: 1152014900304 | D4: 贵阳市云岩区融媒体中心 | E4: 20102000101 | F4: 94.5 | G4: 86 | H4: 180.5 | I4: 36.1 | J4: 78.6 | K4: 31.44 | L4: =I4+K4 -> 67.54
A5: 3 | B5: 罗佳静 | C5: 1152014903126 | D5: 贵阳市云岩区融媒体中心 | E5: 20102000101 | F5: 92.5 | G5: 85.5 | H5: 178 | I5: 35.6 | J5: 79.8 | K5: 31.92 | L5: 67.52
A6: 4 | B6: 蒲昱琦 | C6: 1152015101003 | D6: 云岩区城市更新事务中心 | E6: 20102000201 | F6: 118.5 | G6: 121.5 | H6: 240 | I6: 48 | J6: 77.6 | K6: 31.04 | L6: 79.04
A7: 5 | B7: 韩玫 | C7: 1152015101812 | D7: 云岩区城市更新事务中心 | E7: 20102000201 | F7: 107 | G7: 97 | H7: 204 | I7: 40.8 | J7: 85.4 | K7: 34.16 | L7: 74.96
A8: 6 | B8: 李林杰 | C8: 1152014903802 | D8: 云岩区城市更新事务中心 | E8: 20102000201 | F8: 98 | G8: 103 | H8: 201 | I8: 40.2 | J8: 77.4 | K8: 30.96 | L8: 71.16
A9: 7 | B9: 蒋毅鹏 | C9: 1152015101025 | D9: 云岩区人民政府政务服务中心 | E9: 20102000301 | F9: 112.5 | G9: 106.5 | H9: 219 | I9: 43.8 | J9: 74.6 | K9: =ROUND(J9*0.4,2) -> 29.84 | L9: 73.64
A10: 8 | B10: 齐国旭 | C10: 1152015100217 | D10: 云岩区人民政府政务服务中心 | E10: 20102000301 | F10: 114.5 | G10: 90 | H10: 204.5 | I10: 40.9 | J10: 72 | K10: 28.8 | L10: 69.7
A11: 9 | B11: 徐明丽 | C11: 1152015100514 | D11: 云岩区人民政府政务服务中心 | E11: 20102000301 | F11: 100 | G11: 99.5 | H11: 199.5 | I11: 39.9 | J11: 56.8 | K11: 22.72 | L11: 62.62
A12: 10 | B12: 卢思齐 | C12: 1152015103016 | D12: 贵阳市云岩区法学会 | E12: 20102000401 | F12: 108.5 | G12: 109.5 | H12: 218 | I12: 43.6 | J12: 79.8 | K12: 31.92 | L12: 75.52
A13: 11 | B13: 孙雅琴 | C13: 1152015102307 | D13: 贵阳市云岩区法学会 | E13: 20102000401 | F13: 101 | G13: 107.5 | H13: 208.5 | I13: 41.7 | J13: 79 | K13: 31.6 | L13: 73.3
A14: 12 | B14: 石航 | C14: 1152015101411 | D14: 贵阳市云岩区法学会 | E14: 20102000401 | F14: 111 | G14: 99 | H14: 210 | I14: 42 | J14: 缺考 | K14: 0 | L14: 42
A15: 13 | B15: 王洲 | C15: 1152015101214 | D15: 云岩区粮食和物资储备保障中心 | E15: 20102000501 | F15: 121.5 | G15: 94 | H15: 215.5 | I15: 43.1 | J15: 86.2 | K15: =ROUND(J15*0.4,2) -> 34.48 | L15: 77.58
A16: 14 | B16: 程建勇 | C16: 1152015100727 | D16: 云岩区粮食和物资储备保障中心 | E16: 20102000501 | F16: 119.5 | G16: 93.5 | H16: 213 | I16: 42.6 | J16: 83 | K16: 33.2 | L16: 75.8
A17: 15 | B17: 张镜 | C17: 1152015100329 | D17: 云岩区粮食和物资储备保障中心 | E17: 20102000501 | F17: 110 | G17: 97 | H17: 207 | I17: 41.4 | J17: 84.6 | K17: 33.84 | L17: 75.24
A18: 16 | B18: 郑禄艳 | C18: 1152015102202 | D18: 云岩区劳动人事争议仲裁院 | E18: 20102000601 | F18: 112 | G18: 101.5 | H18: 213.5 | I18: 42.7 | J18: 77.6 | K18: 31.04 | L18: 73.74
A19: 17 | B19: 罗雯 | C19: 1152015101121 | D19: 云岩区劳动人事争议仲裁院 | E19: 20102000601 | F19: 101 | G19: 97.5 | H19: 198.5 | I19: 39.7 | J19: 79.2 | K19: 31.68 | L19: 71.38
A20: 18 | B20: 张娇 | C20: 1152015100122 | D20: 云岩区劳动人事争议仲裁院 | E20: 20102000601 | F20: 97 | G20: 107 | H20: 204 | I20: 40.8 | J20: 75.2 | K20: 30.08 | L20: 70.88
A21: 19 | B21: 易思宇 | C21: 1152015102021 | D21: 云岩区自然资源局黔灵镇自然资源所 | E21: 20102000701 | F21: 115.5 | G21: 98 | H21: 213.5 | I21: 42.7 | J21: 76.8 | K21: 30.72 | L21: 73.42
A22: 20 | B22: 曹润 | C22: 1152015101402 | D22: 云岩区自然资源局黔灵镇自然资源所 | E22: 20102000701 | F22: 108 | G22: 100.5 | H22: 208.5 | I22: 41.7 | J22: 79 | K22: 31.6 | L22: 73.3
A23: 21 | B23: 吕经纬 | C23: 1152015100319 | D23: 云岩区自然资源局黔灵镇自然资源所 | E23: 20102000701 | F23: 99 | G23: 98 | H23: 197 | I23: 39.4 | J23: 79.8 | K23: 31.92 | L23: 71.32
A24: 22 | B24: 林文怡 | C24: 1152015100827 | D24: 云岩区森林植物检疫防治站 | E24: 20102000801 | F24: 112.5 | G24: 106 | H24: 218.5 | I24: 43.7 | J24: 81.6 | K24: 32.64 | L24: 76.34
A25: 23 | B25: 贾家旺 | C25: 1152015100207 | D25: 云岩区森林植物检疫防治站 | E25: 20102000801 | F25: 107.5 | G25: 110 | H25: 217.5 | I25: 43.5 | J25: 81.8 | K25: 32.72 | L25: 76.22
A26: 24 | B26: 岑玉 | C26: 1152015100201 | D26: 云岩区森林植物检疫防治站 | E26: 20102000801 | F26: 104 | G26: 100.5 | H26: 204.5 | I26: 40.9 | J26: 72 | K26: 28.8 | L26: 69.7
A27: 25 | B27: 王洪霞 | C27: 1152015101820 | D27: 云岩区文化馆 | E27: 20102000901 | F27: 108 | G27: 104.5 | H27: 212.5 | I27: 42.5 | J27: 75.6 | K27: 30.24 | L27: 72.74
A28: 26 | B28: 王育瑾 | C28: 1152015102420 | D28: 云岩区文化馆 | E28: 20102000901 | F28: 104.5 | G28: 102 | H28: 206.5 | I28: 41.3 | J28: 缺考 | K28: 0 | L28: 41.3
A29: 27 | B29: 杨利平 | C29: 1152015102312 | D29: 云岩区文化馆 | E29: 20102000901 | F29: 105.5 | G29: 98.5 | H29: 204 | I29: 40.8 | J29: 缺考 | K29: 0 | L29: 40.8
A30: 28 | B30: 朱万如 | C30: 1152015100915 | D30: 云岩区文化馆 | E30: 20102000902 | F30: 120 | G30: 112.5 | H30: 232.5 | I30: 46.5 | J30: 81 | K30: =ROUND(J30*0.4,2) -> 32.4 | L30: 78.9
A31: 29 | B31: 卢荣洁 | C31: 1152015101323 | D31: 云岩区文化馆 | E31: 20102000902 | F31: 104 | G31: 108 | H31: 212 | I31: 42.4 | J31: 82.2 | K31: 32.88 | L31: 75.28
A32: 30 | B32: 杨群 | C32: 1152015102613 | D32: 云岩区文化馆 | E32: 20102000902 | F32: 107 | G32: 107 | H32: 214 | I32: 42.8 | J32: 缺考 | K32: 0 | L32: 42.8
A33: 31 | B33: 邓鹏程 | C33: 1152015102915 | D33: 贵阳市云岩区市政工程管理所 | E33: 20102001001 | F33: 104 | G33: 109 | H33: 213 | I33: 42.6 | J33: 81.6 | K33: 32.64 | L33: 75.24
A34: 32 | B34: 杨飞戈 | C34: 1152015101617 | D34: 贵阳市云岩区市政工程管理所 | E34: 20102001001 | F34: 104 | G34: 99.5 | H34: 203.5 | I34: 40.7 | J34: 78.4 | K34: 31.36 | L34: 72.06
A35: 33 | B35: 余启涛 | C35: 1152015101420 | D35: 贵阳市云岩区市政工程管理所 | E35: 20102001001 | F35: 115.5 | G35: 102 | H35: 217.5 | I35: 43.5 | J35: 69.6 | K35: 27.84 | L35: 71.34
A36: 34 | B36: 唐润 | C36: 1152015300908 | D36: 贵阳市云岩区市政工程管理所 | E36: 20102001002 | F36: 116 | G36: 93.5 | H36: 209.5 | I36: 41.9 | J36: 79 | K36: 31.6 | L36: 73.5
A37: 35 | B37: 任远凤 | C37: 1152015100107 | D37: 贵阳市云岩区市政工程管理所 | E37: 20102001002 | F37: 105 | G37: 99.5 | H37: 204.5 | I37: 40.9 | J37: 78.8 | K37: 31.52 | L37: 72.42
A38: 36 | B38: 袁玉清 | C38: 1152015301714 | D38: 贵阳市云岩区市政工程管理所 | E38: 20102001002 | F38: 104 | G38: 98 | H38: 202 | I38: 40.4 | J38: 78.6 | K38: 31.44 | L38: 71.84
A39: 37 | B39: 肖艳旭 | C39: 1152015300818 | D39: 云岩区应急救援保障中心 | E39: 20102001101 | F39: 108 | G39: 107 | H39: 215 | I39: 43 | J39: 77.2 | K39: 30.88 | L39: 73.88
A40: 38 | B40: 邓雪聪 | C40: 1152015302322 | D40: 云岩区应急救援保障中心 | E40: 20102001101 | F40: 114.5 | G40: 96 | H40: 210.5 | I40: 42.1 | J40: 71.8 | K40: 28.72 | L40: 70.82
A41: 39 | B41: 陈冰坭 | C41: 1152015302020 | D41: 云岩区应急救援保障中心 | E41: 20102001101 | F41: 118.5 | G41: 109.5 | H41: 228 | I41: 45.6 | J41: 缺考 | K41: 0 | L41: 45.6
A42: 40 | B42: 廖苏仪 | C42: 1152015301301 | D42: 贵阳市立诚公证处 | E42: 20102001201 | F42: 105.5 | G42: 104.5 | H42: 210 | I42: 42 | J42: 76.6 | K42: =ROUND(J42*0.4,2) -> 30.64 | L42: 72.64
A43: 41 | B43: 张春燕 | C43: 1152015302208 | D43: 贵阳市立诚公证处 | E43: 20102001201 | F43: 96.5 | G43: 89.5 | H43: 186 | I43: 37.2 | J43: 81.4 | K43: 32.56 | L43: 69.76
A44: 42 | B44: 何春燕 | C44: 1152015300530 | D44: 贵阳市立诚公证处 | E44: 20102001201 | F44: 91.5 | G44: 98 | H44: 189.5 | I44: 37.9 | J44: 77.4 | K44: 30.96 | L44: 68.86
A45: 43 | B45: 姜表波 | C45: 1152015300212 | D45: 云岩区房屋征收服务中心 | E45: 20102001301 | F45: 101.5 | G45: 100.5 | H45: 202 | I45: 40.4 | J45: 71 | K45: 28.4 | L45: 68.8
A46: 44 | B46: 易丙岑 | C46: 1152015301116 | D46: 云岩区房屋征收服务中心 | E46: 20102001301 | F46: 106.5 | G46: 92.5 | H46: 199 | I46: 39.8 | J46: 71.4 | K46: 28.56 | L46: 68.36
A47: 45 | B47: 刘柯 | C47: 1152015300313 | D47: 云岩区房屋征收服务中心 | E47: 20102001301 | F47: 114 | G47: 104.5 | H47: 218.5 | I47: 43.7 | J47: 缺考 | K47: 0 | L47: 43.7
A48: 46 | B48: 何泽萌 | C48: 1152015301019 | D48: 云岩区房屋征收服务中心 | E48: 20102001302 | F48: 100.5 | G48: 95 | H48: 195.5 | I48: 39.1 | J48: 82.4 | K48: =ROUND(J48*0.4,2) -> 32.96 | L48: 72.06
A49: 47 | B49: 封铃 | C49: 1152015303013 | D49: 云岩区房屋征收服务中心 | E49: 20102001302 | F49: 101 | G49: 92 | H49: 193 | I49: 38.6 | J49: 82 | K49: 32.8 | L49: 71.4
A50: 48 | B50: 庞倩 | C50: 1152015301830 | D50: 云岩区房屋征收服务中心 | E50: 20102001302 | F50: 100.5 | G50: 99 | H50: 199.5 | I50: 39.9 | J50: 74.4 | K50: 29.76 | L50: 69.66
A51: 49 | B51: 陈丽丹 | C51: 1152015302510 | D51: 云岩区市场监督管理局信息中心 | E51: 20102001401 | F51: 112.5 | G51: 101.5 | H51: 214 | I51: 42.8 | J51: 79.6 | K51: 31.84 | L51: 74.64
A52: 50 | B52: 罗龙 | C52: 1152015300517 | D52: 云岩区市场监督管理局信息中心 | E52: 20102001401 | F52: 107 | G52: 104 | H52: 211 | I52: 42.2 | J52: 81 | K52: 32.4 | L52: 74.6
A53: 51 | B53: 王迪 | C53: 1152015301228 | D53: 云岩区市场监督管理局信息中心 | E53: 20102001401 | F53: 109.5 | G53: 100 | H53: 209.5 | I53: 41.9 | J53: 80 | K53: 32 | L53: 73.9
A54: 52 | B54: 罗鑫 | C54: 1152015302111 | D54: 贵阳市云岩区人民医院 | E54: 20102001501 | F54: 98 | G54: 80.5 | H54: 178.5 | I54: 35.7 | J54: 76.6 | K54: 30.64 | L54: 66.34
A55: 53 | B55: 田林江 | C55: 1152015302126 | D55: 贵阳市云岩区人民医院 | E55: 20102001501 | F55: 63 | G55: 77.5 | H55: 140.5 | I55: 28.1 | J55: 67.8 | K55: 27.12 | L55: 55.22
A56: 54 | B56: 张书玥 | C56: 1152015302426 | D56: 贵阳市云岩区人民医院 | E56: 20102001501 | F56: 92.5 | G56: 92 | H56: 184.5 | I56: 36.9 | J56: 缺考 | K56: 0 | L56: 36.9
A57: 55 | B57: 胡英 | C57: 1152015302824 | D57: 贵阳市云岩区人民医院 | E57: 20102001502 | F57: 98.5 | G57: 86 | H57: 184.5 | I57: 36.9 | J57: 75.2 | K57: =ROUND(J57*0.4,2) -> 30.08 | L57: 66.98
A58: 56 | B58: 汪华 | C58: 1152015302728 | D58: 贵阳市云岩区人民医院 | E58: 20102001502 | F58: 85.5 | G58: 97 | H58: 182.5 | I58: 36.5 | J58: 74.8 | K58: 29.92 | L58: 66.42
A59: 57 | B59: 张雪 | C59: 1152015302206 | D59: 贵阳市云岩区人民医院 | E59: 20102001502 | F59: 60 | G59: 77 | H59: 137 | I59: 27.4 | J59: 70.2 | K59: 28.08 | L59: 55.48
A60: 58 | B60: 陈清梅 | C60: 1152015301811 | D60: 贵阳市云岩区妇幼保健院 | E60: 20102001601 | F60: 79.5 | G60: 73.5 | H60: 153 | I60: 30.6 | J60: 77 | K60: 30.8 | L60: 61.4
A61: 59 | B61: 陈银进 | C61: 1152015303001 | D61: 贵阳市云岩区妇幼保健院 | E61: 20102001601 | F61: 77.5 | G61: 70.5 | H61: 148 | I61: 29.6 | J61: 75 | K61: 30 | L61: 59.6
A62: 60 | B62: 杨洁 | C62: 1152015300929 | D62: 贵阳市云岩区妇幼保健院 | E62: 20102001601 | F62: 75 | G62: 70.5 | H62: 145.5 | I62: 29.1 | J62: 69.4 | K62: 27.76 | L62: 56.86
A63: 61 | B63: 李佳杰 | C63: 1152015301321 | D63: 云岩区退役军人服务中心 | E63: 20102001701 | F63: 120 | G63: 94 | H63: 214 | I63: 42.8 | J63: 82.8 | K63: 33.12 | L63: 75.92
A64: 62 | B64: 王志浩 | C64: 1152015302317 | D64: 云岩区退役军人服务中心 | E64: 20102001701 | F64: 116.5 | G64: 83.5 | H64: 200 | I64: 40 | J64: 74.4 | K64: 29.76 | L64: 69.76
A65: 63 | B65: 李沛鑫 | C65: 1152015300112 | D65: 云岩区退役军人服务中心 | E65: 20102001701 | F65: 101 | G65: 109.5 | H65: 210.5 | I65: 42.1 | J65: 缺考 | K65: 0 | L65: 42.1
A66: 64 | B66: 李伊木 | C66: 1152015301713 | D66: 云岩区军队离退休干部休养所 | E66: 20102001801 | F66: 120 | G66: 96.5 | H66: 216.5 | I66: 43.3 | J66: 87.2 | K66: =ROUND(J66*0.4,2) -> 34.88 | L66: 78.18
A67: 65 | B67: 易兰兰 | C67: 1152015302225 | D67: 云岩区军队离退休干部休养所 | E67: 20102001801 | F67: 92.5 | G67: 97.5 | H67: 190 | I67: =ROUND(H67/3*0.6,2) -> 38 | J67: 83.2 | K67: 33.28 | L67: =I67+K67 -> 71.28
A68: 66 | B68: 王维鸿 | C68: 1152015300227 | D68: 云岩区军队离退休干部休养所 | E68: 20102001801 | F68: 84.5 | G68: 109 | H68: 193.5 | I68: 38.7 | J68: 80.4 | K68: 32.16 | L68: 70.86
A69: 67 | B69: 黄娅红 | C69: 1152015301118 | D69: 云岩区军队离退休干部休养所 | E69: 20102001801 | F69: 99 | G69: 91 | H69: 190 | I69: 38 | J69: 79.6 | K69: 31.84 | L69: 69.84
A70: 68 | B70: 杨昭文倩 | C70: 1152015301426 | D70: 云岩区金关街道应急工作服务中心 | E70: 20102001901 | F70: 111.5 | G70: 99.5 | H70: 211 | I70: 42.2 | J70: 80.6 | K70: 32.24 | L70: 74.44
A71: 69 | B71: 彭雨蒙 | C71: 1152015302606 | D71: 云岩区金关街道应急工作服务中心 | E71: 20102001901 | F71: 105 | G71: 102 | H71: 207 | I71: 41.4 | J71: 77 | K71: 30.8 | L71: 72.2
A72: 70 | B72: 蔡虹 | C72: 1152015302916 | D72: 云岩区金关街道应急工作服务中心 | E72: 20102001901 | F72: 106 | G72: 101 | H72: 207 | I72: 41.4 | J72: 76.4 | K72: 30.56 | L72: 71.96
A73: 71 | B73: 曾沥叶 | C73: 1152015401726 | D73: 云岩区普陀路街道党务政务综合服务中心 | E73: 20102002001 | F73: 116.5 | G73: 116 | H73: 232.5 | I73: 46.5 | J73: 76.2 | K73: 30.48 | L73: 76.98
A74: 72 | B74: 张颖 | C74: 1152015400207 | D74: 云岩区普陀路街道党务政务综合服务中心 | E74: 20102002001 | F74: 116.5 | G74: 105.5 | H74: 222 | I74: 44.4 | J74: 76.2 | K74: 30.48 | L74: 74.88
A75: 73 | B75: 冯洋 | C75: 1152015400428 | D75: 云岩区普陀路街道党务政务综合服务中心 | E75: 20102002001 | F75: 126.5 | G75: 99 | H75: 225.5 | I75: 45.1 | J75: 缺考 | K75: 0 | L75: 45.1
A76: 74 | B76: 宋驰 | C76: 1152015400101 | D76: 云岩区盐务街街道综治服务中心 | E76: 20102002101 | F76: 117.5 | G76: 119.5 | H76: 237 | I76: 47.4 | J76: 77 | K76: =ROUND(J76*0.4,2) -> 30.8 | L76: 78.2
A77: 75 | B77: 刘武 | C77: 1152015401409 | D77: 云岩区盐务街街道综治服务中心 | E77: 20102002101 | F77: 98.5 | G77: 98.5 | H77: 197 | I77: 39.4 | J77: 79.2 | K77: 31.68 | L77: 71.08
A78: 76 | B78: 严雯霞 | C78: 1152015400907 | D78: 云岩区盐务街街道综治服务中心 | E78: 20102002101 | F78: 98.5 | G78: 96.5 | H78: 195 | I78: 39 | J78: 73.2 | K78: 29.28 | L78: 68.28
A79: 77 | B79: 李扬 | C79: 1152015401727 | D79: 云岩区盐务街街道综治服务中心 | E79: 20102002101 | F79: 110.5 | G79: 84.5 | H79: 195 | I79: 39 | J79: 66.2 | K79: 26.48 | L79: 65.48
A80: 78 | B80: 周文君 | C80: 1152015402324 | D80: 云岩区三桥路街道应急工作服务中心 | E80: 20102002201 | F80: 122.5 | G80: 106.5 | H80: 229 | I80: 45.8 | J80: 79.8 | K80: 31.92 | L80: 77.72
A81: 79 | B81: 刘冉轩 | C81: 1152015401930 | D81: 云岩区三桥路街道应急工作服务中心 | E81: 20102002201 | F81: 106 | G81: 104.5 | H81: 210.5 | I81: 42.1 | J81: 77.2 | K81: 30.88 | L81: 72.98
A82: 80 | B82: 陈田雨 | C82: 1152015401001 | D82: 云岩区三桥路街道应急工作服务中心 | E82: 20102002201 | F82: 111 | G82: 85.5 | H82: 196.5 | I82: 39.3 | J82: 73 | K82: 29.2 | L82: 68.5
A83: 81 | B83: 方成群 | C83: 1152015402320 | D83: 云岩区三桥路街道综治服务中心 | E83: 20102002301 | F83: 72 | G83: 75.5 | H83: 147.5 | I83: 29.5 | J83: 78.2 | K83: 31.28 | L83: 60.78
A84: 82 | B84: 漆丽 | C84: 1152015400306 | D84: 云岩区三桥路街道综治服务中心 | E84: 20102002301 | F84: 55.5 | G84: 84 | H84: 139.5 | I84: 27.9 | J84: 77.2 | K84: 30.88 | L84: 58.78
A85: 83 | B85: 李丹瑞 | C85: 1152015401027 | D85: 云岩区三桥路街道综治服务中心 | E85: 20102002301 | F85: 58.5 | G85: 54 | H85: 112.5 | I85: 22.5 | J85: 77.8 | K85: 31.12 | L85: 53.62
A86: 84 | B86: 陈胤 | C86: 1152015401913 | D86: 云岩区杨惠街道党务政务综合服务中心 | E86: 20102002401 | F86: 100 | G86: 122 | H86: 222 | I86: 44.4 | J86: 82.6 | K86: 33.04 | L86: 77.44
A87: 85 | B87: 钱科红 | C87: 1152015401305 | D87: 云岩区杨惠街道党务政务综合服务中心 | E87: 20102002401 | F87: 109.5 | G87: 96 | H87: 205.5 | I87: 41.1 | J87: 77.6 | K87: 31.04 | L87: 72.14
A88: 86 | B88: 马德燕 | C88: 1152015401213 | D88: 云岩区杨惠街道党务政务综合服务中心 | E88: 20102002401 | F88: 106 | G88: 98 | H88: 204 | I88: 40.8 | J88: 72.6 | K88: 29.04 | L88: 69.84
A89: 87 | B89: 于婷婷 | C89: 1152015401602 | D89: 云岩区渔安街道党务政务综合服务中心 | E89: 20102002501 | F89: 104 | G89: 112.5 | H89: 216.5 | I89: 43.3 | J89: 77.6 | K89: 31.04 | L89: 74.34
A90: 88 | B90: 张华英 | C90: 1152015402604 | D90: 云岩区渔安街道党务政务综合服务中心 | E90: 20102002501 | F90: 96 | G90: 105 | H90: 201 | I90: 40.2 | J90: 缺考 | K90: 0 | L90: 40.2
A91: 89 | B91: 詹建东 | C91: 1152015400705 | D91: 云岩区渔安街道党务政务综合服务中心 | E91: 20102002501 | F91: 121.5 | G91: 76.5 | H91: 198 | I91: 39.6 | J91: 缺考 | K91: 0 | L91: 39.6
A92: 90 | B92: 刘成程 | C92: 1152015402311 | D92: 云岩区毓秀路街道综治服务中心 | E92: 20102002601 | F92: 105.5 | G92: 114.5 | H92: 220 | I92: 44 | J92: 81.2 | K92: =ROUND(J92*0.4,2) -> 32.48 | L92: 76.48
A93: 91 | B93: 石笛 | C93: 1152015500809 | D93: 云岩区毓秀路街道综治服务中心 | E93: 20102002601 | F93: 107 | G93: 113.5 | H93: 220.5 | I93: 44.1 | J93: 79.8 | K93: 31.92 | L93: 76.02
A94: 92 | B94: 杨域 | C94: 1152015502315 | D94: 云岩区毓秀路街道综治服务中心 | E94: 20102002601 | F94: 104.5 | G94: 105.5 | H94: 210 | I94: 42 | J94: 80.8 | K94: 32.32 | L94: 74.32
A95: 93 | B95: 左焱瑜 | C95: 1152015502602 | D95: 云岩区大营路街道优化营商环境服务中心 | E95: 20102002701 | F95: 122 | G95: 112 | H95: 234 | I95: 46.8 | J95: 77.6 | K95: 31.04 | L95: 77.84
A96: 94 | B96: 胡莉 | C96: 1152015501028 | D96: 云岩区大营路街道优化营商环境服务中心 | E96: 20102002701 | F96: 101 | G96: 104.5 | H96: 205.5 | I96: 41.1 | J96: 73 | K96: 29.2 | L96: 70.3
A97: 95 | B97: 刘晰 | C97: 1152015501821 | D97: 云岩区大营路街道优化营商环境服务中心 | E97: 20102002701 | F97: 95.5 | G97: 112 | H97: 207.5 | I97: 41.5 | J97: 缺考 | K97: 0 | L97: 41.5
A98: 96 | B98: 吴余 | C98: 1152015500912 | D98: 云岩区茶园路街道党务政务综合服务中心（科技宣传文化信息服务中心） | E98: 20102002801 | F98: 122 | G98: 92.5 | H98: 214.5 | I98: 42.9 | J98: 78.8 | K98: =ROUND(J98*0.4,2) -> 31.52 | L98: 74.42
A99: 97 | B99: 王洪义 | C99: 1152015502326 | D99: 云岩区茶园路街道党务政务综合服务中心（科技宣传文化信息服务中心） | E99: 20102002801 | F99: 117.5 | G99: 88.5 | H99: 206 | I99: 41.2 | J99: 76.4 | K99: 30.56 | L99: 71.76
A100: 98 | B100: 陈玲莲 | C100: 1152015500630 | D100: 云岩区茶园路街道党务政务综合服务中心（科技宣传文化信息服务中心） | E100: 20102002801 | F100: 110 | G100: 98.5 | H100: 208.5 | I100: 41.7 | J100: 缺考 | K100: 0 | L100: 41.7
A101: 99 | B101: 李杰 | C101: 1152015501312 | D101: 云岩区市西河街道优化营商环境服务中心 | E101: 20102002901 | F101: 110.5 | G101: 98 | H101: 208.5 | I101: 41.7 | J101: 79 | K101: 31.6 | L101: 73.3
A102: 100 | B102: 韦俊杰 | C102: 1152015500501 | D102: 云岩区市西河街道优化营商环境服务中心 | E102: 20102002901 | F102: 101 | G102: 103 | H102: 204 | I102: 40.8 | J102: 79.4 | K102: 31.76 | L102: 72.56
A103: 101 | B103: 宋琪 | C103: 1152015502910 | D103: 云岩区市西河街道优化营商环境服务中心 | E103: 20102002901 | F103: 105 | G103: 108 | H103: 213 | I103: 42.6 | J103: 74 | K103: 29.6 | L103: 72.2
